fUST/lending_fUST_20240408
["ID","MTS","AMOUNT","RATE_DAILY","PERIOD"]
[321867890,1712577033636,-500.0,0.00060273,120]
[321867892,1712577033645,-1151.96,0.00060273,120]
[321867894,1712577033654,-500.0,0.00060273,120]
[321867896,1712577033664,-648.17,0.00060273,120]
[321867897,1712577033673,-500.31585756,0.00060273,120]
[321867898,1712577033682,-500.0,0.00060273,120]
[321867899,1712577033691,-765.98,0.00060273,120]
[321867900,1712577033700,-982.96,0.00060273,21]
[321867901,1712577033708,-500.0,0.00060273,120]
[321867902,1712577033718,-2044.15,0.00060273,120]
[321867903,1712577033726,-1037.31,0.00060273,120]
[321867904,1712577033736,-500.0,0.00060273,120]
[321867905,1712577033745,-500.0,0.00060273,120]
[321867906,1712577033755,-1033.20535277,0.00060273,14]
[321867907,1712577033766,-500.0,0.00060273,120]
[321867908,1712577033776,-627.43,0.00060273,120]
[321867909,1712577033785,-500.0,0.00060273,120]
[321867910,1712577033795,-500.0,0.00060273,120]
[321867911,1712577033804,-500.0,0.00060273,120]
[321867912,1712577033813,-500.0,0.00060273,120]
[321867913,1712577033822,-500.0,0.00060273,120]
[321867914,1712577033832,-500.0,0.00060273,120]
[321867915,1712577033841,-500.0,0.00060273,120]
[321867916,1712577033851,-500.0,0.00060273,120]
[321867917,1712577033860,-646.66,0.00060273,120]
[321867918,1712577033870,-500.0,0.00060273,120]
[321867919,1712577033879,-500.0,0.00060273,120]
[321867920,1712577033888,-532.90138916,0.00060273,120]
[321867921,1712577033898,-500.0,0.00060273,120]
[321867922,1712577033907,-500.0,0.00060273,120]
[321867923,1712577033917,-500.0,0.00060273,120]
[321867924,1712577033926,-656.27,0.00060273,120]
[321867925,1712577033935,-500.0,0.00060273,120]
[321867926,1712577033945,-500.0,0.00060273,120]
[321867927,1712577033954,-1707.07,0.00060273,2]
[321867928,1712577033962,-500.0,0.00060273,120]
[321867929,1712577033971,-500.0,0.00060273,120]
[321867930,1712577033980,-500.0,0.00060273,120]
[321867931,1712577033989,-500.0,0.00060273,120]
[321867932,1712577033997,-875.29,0.00060273,120]
[321867933,1712577034007,-1015.23,0.00060273,120]
[321867934,1712577034018,-500.0,0.00060273,120]
[321867935,1712577034027,-500.0,0.00060273,120]
[321867936,1712577034036,-500.0,0.00060273,120]
[321867937,1712577034046,-1184.0,0.00060273,120]
[321867938,1712577034055,-500.0,0.00060273,120]
[321867939,1712577034064,-3330.85,0.00060273,120]
[321867940,1712577034075,-500.0,0.00060273,120]
[321867941,1712577034084,-511.36858954,0.00060273,120]
[321867942,1712577034093,-500.0,0.00060273,120]
[321867943,1712577034102,-500.0,0.00060273,60]
[321867944,1712577034111,-4537.26,0.00060273,120]
[321867945,1712577034120,-200.0,0.00060739,120]
[321867946,1712577034129,-1425.0,0.00061,120]
[321867947,1712577034137,-4962.18416562,0.00061095,61]
[321867948,1712577034146,-293.63504119,0.00061095,120]
[321867949,1712577034154,-500.0,0.00061095,120]
[321867950,1712577034164,-559.91430398,0.00061095,120]
[321867951,1712577034173,-236.32,0.00061095,120]
[321867952,1712577034183,-500.0,0.00061095,120]
[321867953,1712577034193,-500.0,0.00061095,120]
[321867954,1712577034202,-500.0,0.00061095,120]
[321867955,1712577034211,-500.0,0.00061095,120]
[321867956,1712577034221,-500.0,0.00061095,120]
[321867957,1712577034230,-340.85200876,0.00061095,120]
[321867958,1712577034239,-500.0,0.00061095,120]
[321867959,1712577034248,-624.73460365,0.00061095,120]
[321867960,1712577034257,-500.0,0.00061095,120]
[321867961,1712577034267,-716.68,0.00061095,120]
[321867962,1712577034279,-500.0,0.00061095,120]
[321867963,1712577034289,-500.0,0.00061095,120]
[321867964,1712577034298,-500.0,0.00061095,120]
[321867965,1712577034307,-500.0,0.00061095,120]
[321867966,1712577034317,-500.0,0.00061095,120]
[321867967,1712577034326,-552.27118399,0.00061095,120]
[321867968,1712577034336,-500.0,0.00061095,120]
[321867969,1712577034345,-500.0,0.00061095,120]
[321867970,1712577034354,-500.0,0.00061095,120]
[321867971,1712577034363,-523.99,0.00061095,120]
[321867972,1712577034372,-500.0,0.00061095,120]
[321867973,1712577034381,-500.0,0.00061095,120]
[321867974,1712577034391,-517.81031367,0.00061095,120]
[321867975,1712577034400,-500.0,0.00061095,120]
[321867976,1712577034409,-500.0,0.00061095,120]
[321867977,1712577034418,-500.0,0.00061095,120]
[321867978,1712577034427,-500.0,0.00061095,120]
[321867979,1712577034436,-500.0,0.00061095,120]
[321867980,1712577034445,-500.0,0.00061095,120]
[321867981,1712577034454,-500.0,0.00061095,120]
[321867982,1712577034463,-1010.15,0.00061095,120]
[321867983,1712577034472,-500.0,0.00061095,120]
[321867984,1712577034481,-500.0,0.00061095,120]
[321867985,1712577034490,-500.0,0.00061095,120]
[321867986,1712577034499,-500.0,0.00061095,120]
[321867987,1712577034508,-500.0,0.00061095,120]
[321867988,1712577034518,-500.0,0.00061095,120]
[321867989,1712577034527,-532.92,0.00061095,120]
[321867990,1712577034537,-500.0,0.00061095,120]
[321867991,1712577034546,-1049.22,0.00061095,120]
[321867992,1712577034555,-500.0,0.00061095,120]
[321867993,1712577034564,-500.0,0.00061095,120]
[321867994,1712577034573,-500.0,0.00061095,120]
[321867995,1712577034583,-500.0,0.00061095,120]
[321867996,1712577034592,-500.0,0.00061095,120]
[321867997,1712577034661,-605.38,0.00061095,120]
[321867998,1712577034670,-500.0,0.00061095,120]
[321867999,1712577034679,-500.0,0.00061095,120]
[321868000,1712577034689,-500.0,0.00061095,120]
[321868001,1712577034698,-520.87,0.00061095,120]
[321868002,1712577034708,-500.0,0.00061095,120]
[321868003,1712577034717,-500.0,0.00061095,120]
[321868004,1712577034726,-818.52,0.00061095,120]
[321868005,1712577034735,-1031.03,0.00061095,120]
[321868006,1712577034745,-500.0,0.00061095,120]
[321868007,1712577034754,-500.0,0.00061095,120]
[321868008,1712577034764,-500.0,0.00061095,120]
[321868009,1712577034774,-2951.75,0.00061095,120]
[321868010,1712577034783,-1649.05,0.00061095,120]
[321868011,1712577034792,-500.0,0.00061095,120]
[321868012,1712577034802,-1764.97,0.00061095,120]
[321868013,1712577034811,-509.53,0.00061095,120]
[321868014,1712577034820,-1799.77,0.00061095,120]
[321868015,1712577034829,-500.0,0.00061095,120]
[321868016,1712577034838,-590.57,0.00061095,120]
[321868017,1712577034848,-908.0,0.00061095,120]
[321868018,1712577034857,-1261.58,0.00061095,120]
[321868019,1712577034866,-500.0,0.00061095,120]
[321868020,1712577034875,-5684.42,0.00061095,90]
[321868021,1712577034884,-3543.94,0.00061095,120]
[321868022,1712577034894,-500.0,0.00061095,120]
[321868023,1712577034903,-1151.96,0.00061095,120]
[321868024,1712577034912,-500.0,0.00061095,120]
[321868025,1712577034921,-648.17,0.00061095,120]
[321868026,1712577034929,-765.98,0.00061095,120]
[321868027,1712577034938,-982.96,0.00061095,21]
[321868028,1712577034947,-500.0,0.00061095,120]
[321868029,1712577034956,-2044.15,0.00061095,120]
[321868030,1712577034966,-1037.31,0.00061095,120]
[321868031,1712577034975,-500.0,0.00061095,120]
[321868032,1712577034984,-500.0,0.00061095,120]
[321868033,1712577034993,-627.43,0.00061095,120]
[321868034,1712577035002,-500.0,0.00061095,120]
[321868035,1712577035011,-500.0,0.00061095,120]
[321868036,1712577035022,-500.0,0.00061095,120]
[321868037,1712577035031,-500.0,0.00061095,120]
[321868038,1712577035040,-500.0,0.00061095,120]
[321868039,1712577035049,-500.0,0.00061095,120]
[321868040,1712577035059,-500.0,0.00061095,120]
[321868041,1712577035068,-500.0,0.00061095,120]
[321868042,1712577035078,-646.66,0.00061095,120]
[321868043,1712577035088,-500.0,0.00061095,120]
[321868044,1712577035098,-500.0,0.00061095,120]
[321868045,1712577035107,-500.0,0.00061095,120]
[321868046,1712577035117,-500.0,0.00061095,120]
[321868047,1712577035126,-656.27,0.00061095,120]
[321868048,1712577035136,-500.0,0.00061095,120]
[321868049,1712577035145,-1707.07,0.00061095,2]
[321868050,1712577035155,-500.0,0.00061095,120]
[321868051,1712577035165,-500.0,0.00061095,120]
[321868052,1712577035175,-500.0,0.00061095,120]
[321868053,1712577035186,-875.29,0.00061095,120]
[321868054,1712577035198,-1015.23,0.00061095,120]
[321868055,1712577035208,-500.0,0.00061095,120]
[321868056,1712577035217,-500.0,0.00061095,120]
[321868057,1712577035226,-500.0,0.00061095,120]
[321868058,1712577035235,-1184.0,0.00061095,120]
[321868059,1712577035245,-3330.85,0.00061095,120]
[321868060,1712577035254,-500.0,0.00061095,120]
[321868061,1712577035265,-500.0,0.00061095,60]
[321868062,1712577035275,-4537.26,0.00061095,120]
[321868063,1712577035286,-163.0,0.00061619,120]
[321868064,1712577035296,-1000.0,0.000618,30]
[321868065,1712577035306,-553.08,0.00061816,120]
[321868066,1712577035316,-622.04,0.00061816,120]
[321868067,1712577035325,-1479.84,0.00061816,120]
[321868068,1712577035334,-500.0,0.00061816,120]
[321868069,1712577035344,-511.14568322,0.00061816,120]
[321868070,1712577035355,-4434.95,0.00061816,120]
[321868071,1712577035364,-504.78667086,0.00061816,120]
[321868072,1712577035373,-500.0,0.00061816,120]
[321868073,1712577035383,-781.83,0.00061816,120]
[321868074,1712577035392,-500.0,0.00061816,120]
[321868075,1712577035401,-589.37,0.00061816,120]
[321868076,1712577035411,-242.07004336,0.00061816,120]
[321868077,1712577035420,-500.0,0.00061816,120]
[321868078,1712577035430,-500.0,0.00061816,120]
[321868079,1712577035439,-1937.1,0.00061816,120]
[321868080,1712577035449,-500.0,0.00061917,120]
[321868081,1712577035459,-500.0,0.00061917,120]
[321868082,1712577035468,-500.0,0.00061917,120]
[321868083,1712577035477,-500.0,0.00061917,120]
[321868084,1712577035486,-500.0,0.00061917,120]
[321868085,1712577035495,-500.0,0.00061917,120]
[321868086,1712577035504,-500.0,0.00061917,120]
[321868087,1712577035514,-500.0,0.00061917,120]
[321868088,1712577035523,-716.68,0.00061917,120]
[321868089,1712577035530,-500.0,0.00061917,120]
[321868090,1712577035540,-500.0,0.00061917,120]
[321868091,1712577035549,-500.0,0.00061917,120]
[321868092,1712577035558,-500.0,0.00061917,120]
[321868093,1712577035567,-500.0,0.00061917,120]
[321868094,1712577035575,-500.0,0.00061917,120]
[321868095,1712577035585,-500.0,0.00061917,120]
[321868096,1712577035594,-500.0,0.00061917,120]
[321868097,1712577035603,-523.99,0.00061917,120]
[321868098,1712577035612,-500.0,0.00061917,120]
[321868099,1712577035622,-500.0,0.00061917,120]
[321868100,1712577035631,-500.0,0.00061917,120]
[321868101,1712577035640,-500.0,0.00061917,120]
[321868102,1712577035649,-500.0,0.00061917,120]
[321868103,1712577035658,-500.0,0.00061917,120]
[321868104,1712577035667,-500.0,0.00061917,120]
[321868105,1712577035676,-500.0,0.00061917,120]
[321868106,1712577035685,-378.02443372,0.00061917,120]
[321868107,1712577035695,-1010.15,0.00061917,120]
[321868108,1712577035704,-500.0,0.00061917,120]
[321868109,1712577035714,-500.0,0.00061917,120]
[321868110,1712577035723,-500.0,0.00061917,120]
[321868111,1712577035732,-500.0,0.00061917,120]
[321868112,1712577035741,-500.0,0.00061917,120]
[321868113,1712577035750,-500.0,0.00061917,120]
[321868114,1712577035759,-532.92,0.00061917,120]
[321868115,1712577035769,-228.14487779,0.00061917,120]
[321868116,1712577035778,-1049.22,0.00061917,120]
[321868117,1712577035787,-500.0,0.00061917,120]
[321868118,1712577035797,-500.0,0.00061917,120]
[321868119,1712577035805,-500.0,0.00061917,120]
[321868120,1712577035814,-500.0,0.00061917,120]
[321868121,1712577035823,-500.0,0.00061917,120]
[321868122,1712577035833,-605.38,0.00061917,120]
[321868123,1712577035842,-500.0,0.00061917,120]
[321868124,1712577035851,-500.0,0.00061917,120]
[321868125,1712577035860,-524.85103567,0.00061917,120]
[321868126,1712577035869,-520.87,0.00061917,120]
[321868127,1712577035879,-500.0,0.00061917,120]
[321868128,1712577035888,-500.0,0.00061917,120]
[321868129,1712577035898,-818.52,0.00061917,120]
[321868130,1712577035907,-1031.03,0.00061917,120]
[321868131,1712577035916,-500.0,0.00061917,120]
[321868132,1712577035925,-500.0,0.00061917,120]
[321868133,1712577035934,-500.0,0.00061917,120]
[321868134,1712577035944,-2951.75,0.00061917,120]
[321868135,1712577035953,-1649.05,0.00061917,120]
[321868136,1712577035962,-500.0,0.00061917,120]
[321868137,1712577036029,-1764.97,0.00061917,120]
[321868138,1712577036038,-509.53,0.00061917,120]
[321868139,1712577036047,-1799.77,0.00061917,120]
[321868140,1712577036056,-500.0,0.00061917,120]
[321868141,1712577036065,-590.57,0.00061917,120]
[321868142,1712577036074,-908.0,0.00061917,120]
[321868143,1712577036084,-1261.58,0.00061917,120]
[321868144,1712577036094,-209.92295432,0.00061917,120]
[321868145,1712577036103,-5684.42,0.00061917,90]
[321868146,1712577036112,-3543.94,0.00061917,120]
[321868147,1712577036121,-500.0,0.00061917,120]
[321868148,1712577036130,-1151.96,0.00061917,120]
[321868149,1712577036140,-330.19348949,0.00061917,120]
[321868150,1712577036149,-648.17,0.00061917,120]
[321868151,1712577036158,-765.98,0.00061917,120]
[321868152,1712577036167,-982.96,0.00061917,21]
[321868153,1712577036176,-500.0,0.00061917,120]
[321868154,1712577036187,-2044.15,0.00061917,120]
[321868155,1712577036198,-1037.31,0.00061917,120]
[321868156,1712577036208,-500.0,0.00061917,120]
[321868157,1712577036217,-500.0,0.00061917,120]
[321868158,1712577036227,-627.43,0.00061917,120]
[321868159,1712577036236,-508.31382463,0.00061917,120]
[321868160,1712577036245,-519.10169598,0.00061917,120]
[321868161,1712577036255,-500.0,0.00061917,120]
[321868162,1712577036265,-500.0,0.00061917,120]
[321868163,1712577036275,-500.0,0.00061917,120]
[321868164,1712577036284,-500.0,0.00061917,120]
[321868165,1712577036293,-500.0,0.00061917,120]
[321868166,1712577036302,-500.0,0.00061917,120]
[321868167,1712577036311,-646.66,0.00061917,120]
[321868168,1712577036320,-500.0,0.00061917,120]
[321868169,1712577036329,-500.0,0.00061917,120]
[321868170,1712577036338,-500.0,0.00061917,120]
[321868171,1712577036346,-500.0,0.00061917,120]
[321868172,1712577036356,-656.27,0.00061917,120]
[321868173,1712577036366,-500.0,0.00061917,120]
[321868174,1712577036375,-1707.07,0.00061917,2]
[321868175,1712577036384,-500.0,0.00061917,120]
[321868176,1712577036394,-500.0,0.00061917,120]
[321868177,1712577036403,-500.0,0.00061917,120]
[321868178,1712577036412,-875.29,0.00061917,120]
[321868179,1712577036421,-1015.23,0.00061917,120]
[321868180,1712577036430,-500.0,0.00061917,120]
[321868181,1712577036439,-500.0,0.00061917,120]
[321868182,1712577036448,-500.0,0.00061917,120]
[321868183,1712577036458,-1184.0,0.00061917,120]
[321868184,1712577036466,-3330.85,0.00061917,120]
[321868185,1712577036475,-500.0,0.00061917,120]
[321868186,1712577036485,-500.0,0.00061917,60]
[321868187,1712577036494,-4537.26,0.00061917,120]
[321868188,1712577036504,-2000.0,0.00062,30]
[321868189,1712577036512,-622.04,0.00062638,120]
[321868190,1712577036522,-1479.84,0.00062638,120]
[321868191,1712577036531,-500.0,0.00062638,120]
[321868192,1712577036541,-4434.95,0.00062638,120]
[321868193,1712577036549,-500.0,0.00062638,120]
[321868194,1712577036558,-781.83,0.00062638,120]
[321868195,1712577036567,-500.0,0.00062638,120]
[321868196,1712577036576,-589.37,0.00062638,120]
[321868197,1712577036585,-355.18272079,0.00062638,120]
[321868198,1712577036594,-1937.1,0.00062638,120]
[321868199,1712577036603,-1941.06487968,0.00062639,2]
[321868200,1712577036612,-500.0,0.00062739,120]
[321868201,1712577036620,-500.0,0.00062739,120]
[321868202,1712577036629,-500.0,0.00062739,120]
[321868203,1712577036638,-500.0,0.00062739,120]
[321868204,1712577036647,-500.0,0.00062739,120]
[321868205,1712577036656,-500.0,0.00062739,120]
[321868206,1712577036664,-500.0,0.00062739,120]
[321868207,1712577036673,-500.0,0.00062739,120]
[321868208,1712577036682,-716.68,0.00062739,120]
[321868209,1712577036691,-163.31576565,0.00062739,120]
[321868210,1712577036700,-500.0,0.00062739,120]
[321868211,1712577036709,-546.49363669,0.00062739,120]
[321868212,1712577036718,-500.0,0.00062739,120]
[321868213,1712577036727,-500.0,0.00062739,120]
[321868214,1712577036736,-214.05859965,0.00062739,120]
[321868215,1712577036745,-500.0,0.00062739,120]
[321868216,1712577036754,-500.0,0.00062739,120]
[321868217,1712577036764,-523.99,0.00062739,120]
[321868218,1712577036773,-500.0,0.00062739,120]
[321868219,1712577036782,-500.0,0.00062739,120]
[321868220,1712577036791,-519.67967352,0.00062739,120]
[321868221,1712577036800,-500.0,0.00062739,120]
[321868222,1712577036809,-500.0,0.00062739,120]
[321868223,1712577036818,-500.0,0.00062739,120]
[321868224,1712577036827,-500.0,0.00062739,120]
[321868225,1712577036835,-500.0,0.00062739,120]
[321868226,1712577036846,-1010.15,0.00062739,120]
[321868227,1712577036855,-500.0,0.00062739,120]
[321868228,1712577036864,-500.0,0.00062739,120]
[321868229,1712577036873,-331.6910815,0.00062739,120]
[321868230,1712577036882,-500.0,0.00062739,120]
[321868231,1712577036891,-500.0,0.00062739,120]
[321868232,1712577036900,-500.0,0.00062739,120]
[321868233,1712577036909,-532.92,0.00062739,120]
[321868234,1712577036918,-1049.22,0.00062739,120]
[321868235,1712577036927,-500.0,0.00062739,120]
[321868236,1712577036936,-500.0,0.00062739,120]
[321868237,1712577036946,-500.0,0.00062739,120]
[321868238,1712577036955,-500.0,0.00062739,120]
[321868239,1712577036964,-500.0,0.00062739,120]
[321868240,1712577036974,-605.38,0.00062739,120]
[321868241,1712577036986,-500.0,0.00062739,120]
[321868242,1712577036995,-500.0,0.00062739,120]
[321868243,1712577037005,-520.87,0.00062739,120]
[321868244,1712577037016,-500.0,0.00062739,120]
[321868245,1712577037026,-500.0,0.00062739,120]
[321868246,1712577037035,-818.52,0.00062739,120]
[321868247,1712577037044,-1031.03,0.00062739,120]
[321868248,1712577037054,-500.0,0.00062739,120]
[321868249,1712577037063,-500.0,0.00062739,120]
[321868250,1712577037073,-500.0,0.00062739,120]
[321868251,1712577037082,-2951.75,0.00062739,120]
[321868252,1712577037092,-1649.05,0.00062739,120]
[321868253,1712577037102,-500.0,0.00062739,120]
[321868254,1712577037110,-1764.97,0.00062739,120]
[321868255,1712577037120,-509.53,0.00062739,120]
[321868256,1712577037130,-1799.77,0.00062739,120]
[321868257,1712577037139,-500.0,0.00062739,120]
[321868258,1712577037149,-590.57,0.00062739,120]
[321868259,1712577037158,-908.0,0.00062739,120]
[321868260,1712577037168,-1261.58,0.00062739,120]
[321868261,1712577037177,-5684.42,0.00062739,90]
[321868262,1712577037190,-500.0,0.00062739,120]
[321868263,1712577037201,-3543.94,0.00062739,120]
[321868264,1712577037210,-1151.96,0.00062739,120]
[321868265,1712577037220,-648.17,0.00062739,120]
[321868266,1712577037285,-765.98,0.00062739,120]
[321868267,1712577037295,-982.96,0.00062739,21]
[321868268,1712577037304,-500.0,0.00062739,120]
[321868269,1712577037313,-2044.15,0.00062739,120]
[321868270,1712577037322,-1037.31,0.00062739,120]
[321868271,1712577037333,-500.0,0.00062739,120]
[321868272,1712577037341,-500.0,0.00062739,120]
[321868273,1712577037351,-627.43,0.00062739,120]
[321868274,1712577037360,-609.81,0.00062739,120]
[321868275,1712577037369,-500.0,0.00062739,120]
[321868276,1712577037378,-207.07435654,0.00062739,120]
[321868277,1712577037387,-500.0,0.00062739,120]
[321868278,1712577037397,-500.0,0.00062739,120]
[321868279,1712577037406,-500.0,0.00062739,120]
[321868280,1712577037415,-646.66,0.00062739,120]
[321868281,1712577037424,-500.0,0.00062739,120]
[321868282,1712577037433,-500.0,0.00062739,120]
[321868283,1712577037442,-500.0,0.00062739,120]
[321868284,1712577037451,-500.0,0.00062739,120]
[321868285,1712577037460,-656.27,0.00062739,120]
[321868286,1712577037469,-500.0,0.00062739,120]
[321868287,1712577037479,-1707.07,0.00062739,2]
[321868288,1712577037488,-500.0,0.00062739,120]
[321868289,1712577037497,-525.94059589,0.00062739,120]
[321868290,1712577037506,-500.0,0.00062739,120]
[321868291,1712577037516,-875.29,0.00062739,120]
[321868292,1712577037525,-1015.23,0.00062739,120]
[321868293,1712577037535,-500.0,0.00062739,120]
[321868294,1712577037544,-500.0,0.00062739,120]
[321868295,1712577037553,-500.0,0.00062739,120]
[321868296,1712577037563,-1184.0,0.00062739,120]
[321868297,1712577037573,-3330.85,0.00062739,120]
[321868298,1712577037582,-500.0,0.00062739,120]
[321868299,1712577037591,-500.0,0.00062739,60]
[321868300,1712577037600,-4537.26,0.00062739,120]
[321868301,1712577037610,-306.0,0.00062747,30]
[321868302,1712577037619,-700.0,0.00063,120]
[321868303,1712577037628,-2500.0,0.00063,120]
[321868304,1712577037637,-746.0,0.000633,120]
[321868306,1712577037646,-622.04,0.0006346,120]
[321868308,1712577037655,-1479.84,0.0006346,120]
[321868310,1712577037664,-500.0,0.0006346,120]
[321868312,1712577037673,-4434.95,0.0006346,120]
[321868314,1712577037682,-500.0,0.0006346,120]
[321868316,1712577037691,-781.83,0.0006346,120]
[321868318,1712577037700,-500.0,0.0006346,120]
[321868320,1712577037710,-589.37,0.0006346,120]
[321868322,1712577037719,-162.74068254,0.0006346,120]
[321868326,1712577037812,-1579.54893316,0.0006346,120]
[321868329,1712577037823,-194.8103843,0.0006346,120]
[321868331,1712577037833,-155.6660378,0.00063461,2]
[321868333,1712577037843,-191.04212036,0.0006356,15]
[321868335,1712577037852,-500.0,0.00063561,120]
[321868336,1712577037861,-500.0,0.00063561,120]
[321868337,1712577037870,-500.0,0.00063561,120]
[321868338,1712577037879,-500.0,0.00063561,120]
[321868339,1712577037889,-500.0,0.00063561,120]
[321868340,1712577037898,-500.0,0.00063561,120]
[321868341,1712577037908,-500.0,0.00063561,120]
[321868342,1712577037917,-500.0,0.00063561,120]
[321868343,1712577037926,-716.68,0.00063561,120]
[321868344,1712577037936,-156.34537166,0.00063561,7]
[321868345,1712577037945,-203.7739438,0.00063561,120]
[321868346,1712577037954,-261.27248051,0.00063561,2]
[321868347,1712577037964,-500.0,0.00063561,120]
[321868348,1712577037973,-500.0,0.00063561,120]
[321868349,1712577037983,-500.0,0.00063561,120]
[321868350,1712577037992,-91.60923677,0.00063561,120]
[321868351,1712577038270,-152.85264594,0.00059999,120]
[321868352,1712577038280,-408.39076323,0.00063561,120]
[321868353,1712577038290,-523.99,0.00063561,120]
[321868354,1712577038299,-500.0,0.00063561,120]
[321868355,1712577038309,-500.0,0.00063561,120]
[321868356,1712577038318,-500.0,0.00063561,120]
[321868357,1712577038388,-500.0,0.00063561,120]
[321868358,1712577038397,-481.63806874,0.00063561,120]
[321868359,1712577038407,-500.0,0.00063561,120]
[321868360,1712577038416,-393.16412984,0.00063561,120]
[321868361,1712577038425,-1010.15,0.00063561,120]
[321868362,1712577038434,-518.72319547,0.00063561,120]
[321868363,1712577038443,-500.0,0.00063561,120]
[321868364,1712577038452,-500.0,0.00063561,120]
[321868365,1712577038461,-500.0,0.00063561,120]
[321868366,1712577038470,-500.0,0.00063561,120]
[321868367,1712577038479,-532.92,0.00063561,120]
[321868368,1712577038488,-1049.22,0.00063561,120]
[321868369,1712577038497,-151.0,0.00063561,120]
[321868370,1712577038505,-399.9912,0.00063561,120]
[321868371,1712577038514,-246.807362,0.00063561,120]
[321868372,1712577038525,-500.0,0.00063561,120]
[321868373,1712577038534,-246.807362,0.00063561,120]
[321868374,1712577038543,-399.9912,0.00063561,120]
[321868375,1712577038552,-500.0,0.00063561,120]
[321868376,1712577038561,-500.0,0.00063561,120]
[321868377,1712577038571,-151.0,0.00063561,120]
[321868378,1712577038580,-500.0,0.00063561,120]
[321868379,1712577038589,-432.27536822,0.00063561,120]
[321868380,1712577038598,-605.38,0.00063561,120]
[321868381,1712577038608,-500.0,0.00063561,120]
[321868382,1712577038617,-153.139591,0.00063561,120]
[321868383,1712577038626,-500.0,0.00063561,120]
[321868384,1712577038635,-520.87,0.00063561,120]
[321868385,1712577038644,-500.0,0.00063561,120]
[321868386,1712577038653,-818.52,0.00063561,120]
[321868387,1712577038662,-151.0,0.00063561,120]
[321868388,1712577038671,-1031.03,0.00063561,120]
[321868389,1712577038680,-500.0,0.00063561,120]
[321868390,1712577038689,-500.0,0.00063561,120]
[321868391,1712577038698,-591.72607,0.00063561,120]
[321868392,1712577038708,-151.0,0.00063561,120]
[321868393,1712577038717,-500.0,0.00063561,120]
[321868394,1712577038726,-591.72607,0.00063561,120]
[321868395,1712577038735,-2951.75,0.00063561,120]
[321868396,1712577038744,-1649.05,0.00063561,120]
[321868397,1712577038752,-500.0,0.00063561,120]
[321868398,1712577038761,-1764.97,0.00063561,120]
[321868399,1712577038771,-509.53,0.00063561,120]
[321868400,1712577038780,-1799.77,0.00063561,120]
[321868401,1712577038789,-500.0,0.00063561,120]
[321868402,1712577038799,-590.57,0.00063561,120]
[321868403,1712577038808,-151.0,0.00063561,120]
[321868404,1712577038818,-908.0,0.00063561,120]
[321868405,1712577038826,-1261.58,0.00063561,120]
[321868406,1712577038836,-5684.42,0.00063561,90]
[321868407,1712577038844,-500.0,0.00063561,120]
[321868408,1712577038854,-3543.94,0.00063561,120]
[321868409,1712577038862,-1151.96,0.00063561,120]